Cogmind - Beta 11 X8 @@@ ROGUE MODE // 2021.12.22 @ 02:12:42 Player: Judas Result: Destroyed by 8R-AWN with 8R-AWN's Boregun Performance ------------- Evolutions (1) 500 Regions Visited (4) 800 Robots Destroyed (20) 100 Value Destroyed (552) 552 Prototype IDs (0) 0 Alien Tech Used (0) 0 Bonus (0) 0 TOTAL SCORE: 1952 Bonus ------- None Cogmind --------- Core Integrity 0/400 Matter 410/500 Energy 100/100 System Corruption 5% Temperature Cool (0) Movement Core (400) Ox7 Location -9/Exiles Parts ------- > --- POWER (1) -------- (None) > --- PROPULSION (2) --- (None) > --- UTILITY (3) ------ Large Storage Unit High-capacity Matter Pod > --- WEAPON (3) ------- (None) > --- INVENTORY (15) --- Nuclear Core Light Fission Core Light Treads Light Treads Large Storage Unit Improved Targeting Computer Armor Integrity Analyzer Hardened Light Armor Plating Shield Generator Light EM Pulse Cannon Heavy Assault Rifle Heavy Assault Rifle Mace Peak State ------------ > --- POWER ------------ Improved Ion Engine > --- PROPULSION ------- Light Treads Armored Wheel > --- UTILITY ---------- Large Storage Unit High-capacity Matter Pod Terrain Scanner > --- WEAPON ----------- Heavy Assault Rifle Heavy Assault Rifle Heavy Assault Rifle > --- INVENTORY -------- Nuclear Core Light Fission Core Light Treads Light Treads Large Storage Unit Improved Targeting Computer Armor Integrity Analyzer Hardened Light Armor Plating Shield Generator Light EM Pulse Cannon Heavy Assault Rifle Heavy Assault Rifle Grenade Launcher Rocket Launcher Mace [Rating: 17] Favorites ----------- Power Ion Engine Engine Ion Engine Propulsion Compact Wheel Treads Light Treads Leg Aluminum Leg Wheel Compact Wheel Utility Large Storage Unit Device Terrain Scanner Storage Large Storage Unit Weapon Heavy Assault Rifle Energy Gun EM Pulse Gun Ballistic Gun Heavy Assault Rifle Launcher Rocket Launcher Build | -11 -10 -9 -9 -9 ------- Run | Scr Mat Mat Min Exi Slots Evolved 2 | . . 2 . . Power . | . . . . . Propulsion . | . . . . . Utility 1 | . . 1 . . Weapon 1 | . . 1 . . Parts Attached 24 | 3 7 6 6 2 Power 3 | 1 1 . 1 . Engine 3 | 1 1 . 1 . Core . | . . . . . Reactor . | . . . . . Propulsion 8 | 2 . 2 4 . Treads 2 | . . 1 1 . Leg . | . . . . . Wheel 6 | 2 . 1 3 . Hover . | . . . . . Flight . | . . . . . Utility 3 | . 2 1 . . Device 1 | . . 1 . . Storage 2 | . 2 . . . Processor . | . . . . . Hackware . | . . . . . Protection . | . . . . . Artifact . | . . . . . Weapon 10 | . 4 3 1 2 Energy Gun 2 | . 2 . . . Energy Cannon . | . . . . . Ballistic Gun 6 | . 2 3 1 . Ballistic Cannon . | . . . . . Launcher 2 | . . . . 2 Special Weapon . | . . . . . Impact Weapon . | . . . . . Slashing Weapon . | . . . . . Piercing Weapon . | . . . . . Special Melee Weapon . | . . . . . Unidentified Prototypes . | . . . . . Corrupted Parts 1 | 1 . . . . System Corruption 1 | 1 . . . . Parts Lost 13 | . 2 2 . 9 Power 2 | . 1 . . 1 Propulsion 4 | . . 2 . 2 Utility 1 | . . . . 1 Weapon 6 | . 1 . . 5 Highest Loss Streak 9 | . 2 1 . 9 Average Slot Usage (%) 94 | . 90 95 100 79 Engine 11 | . 13 11 11 11 Treads 2 | . . 1 3 9 Wheel 19 | . 28 17 18 8 Device 7 | . . 9 11 8 Storage 21 | . 21 22 22 22 Energy Gun 5 | . 20 . . . Ballistic Gun 24 | . 6 33 33 18 Naked Turns . | . . . . . Heaviest Build 41 | 13 35 39 41 41 Greatest Support 32 | 26 26 32 32 12 Greatest Overweight (x) 11 | . 1 2 3 11 Average Overweight (x) 1 | . . 1 1 3 Largest Inventory Capacity 15 | 8 15 15 15 15 Average Capacity 14 | 8 14 15 15 15 Most Carried 15 | 6 10 12 15 15 Average Carried 11 | 6 7 10 13 14 Final Capacity 15 | 8 15 15 15 15 Final Carried 15 | 6 10 12 15 13 Class Distribution -------------------- 60% | Skirmisher 34% | Mutant 5% | Gunner Dominant Class ---------------- Mutant | -10/Materials Skirmisher | -9/Materials Skirmisher | -9/Mines Mutant | -9/Exiles Resources | -11 -10 -9 -9 -9 ----------- Run | Scr Mat Mat Min Exi Matter Collected 834 | 235 100 240 259 . Remotely . | . . . . . Salvage Created 730 | 76 208 240 196 10 Parts 56 | 6 15 18 17 . Haulers Intercepted . | . . . . . Recyclers Shooed 1 | . . 1 . . Parts Field Recycled . | . . . . . Retrieved Matter . | . . . . . Parts Self-Destructed . | . . . . . Prevented . | . . . . . Kills | -11 -10 -9 -9 -9 ------- Run | Scr Mat Mat Min Exi Combat Hostiles Destroyed 21 | . 5 6 6 4 Guns 15 | . 3 6 6 . AOE 5 | . 1 . . 4 Classes Destroyed 8 | 2 1 2 2 1 Worker 1 | . . . 1 . Tunneler 1 | 1 . . . . Recycler 1 | 1 . . . . Swarmer 4 | . . . 4 . Grunt 9 | . 5 4 . . Duelist 1 | . . 1 . . Sentry 3 | . . 1 2 . Assembled 4 | . . . . 4 Best Kill Streak 5 | 2 3 3 5 4 Combat Bots Only 4 | . 3 3 4 4 Max Kills in Single Turn 4 | 1 1 2 1 4 Gunslinging 1 | . . 1 . . Exploded 4 | . 1 . . 4 Melee . | . . . . . Uniques/NPCs Destroyed . | . . . . . Combat | -11 -10 -9 -9 -9 -------- Run | Scr Mat Mat Min Exi Damage Taken 1747 | . 237 339 295 876 Core 483 | . 75 42 62 304 Absorbed by Shields . | . . . . . Core Remaining (%) 85 | 100 70 . . . Volleys Fired 55 | 5 19 15 14 2 Largest 3 | 2 2 3 3 2 Hottest 80 | 60 80 69 69 63 Shots Fired 132 | 10 30 44 43 5 Gun 128 | 10 30 44 43 1 Cannon . | . . . . . Launcher 4 | . . . . 4 Special . | . . . . . Kinetic 97 | 5 4 44 43 1 Thermal 2 | . 2 . . . Explosive 4 | . . . . 4 Electromagnetic 29 | 5 24 . . . Robot Hit Streak 7 | 4 7 4 6 4 Robot Miss Streak 4 | 2 4 3 4 1 Penetration Max . | . . . . . Secondary Targets 2 | . . 1 1 . Max Gunslinging Chain 1 | . . 1 1 . Shots Hit Robots 80 | 5 18 26 27 4 Core Hits 34 | 3 6 9 9 7 Critical Kills . | . . . . . Critical Parts Destroyed . | . . . . . Critical Strikes . | . . . . . Melee Attacks . | . . . . . Impact . | . . . . . Slashing . | . . . . . Piercing . | . . . . . Sneak Attacks . | . . . . . Combat Hostiles . | . . . . . Follow-up Attacks . | . . . . . Damage Inflicted 1538 | 56 313 422 413 334 Guns 1171 | 56 280 422 413 . Cannons . | . . . . . Explosions 367 | . 33 . . 334 Melee . | . . . . . Ramming . | . . . . . Kinetic 869 | 17 17 422 413 . Thermal 33 | . 33 . . . Explosive 334 | . . . . 334 Electromagnetic 302 | 39 263 . . . Impact . | . . . . . Slashing . | . . . . . Piercing . | . . . . . Highest Corruption 5 | 1 1 5 5 5 Average Corruption 3 | 1 1 4 5 5 Corruption Purged . | . . . . . Effects 15 | . . 3 10 2 Message Errors 3 | . . . 3 . Matter Fused 3 | . . 1 1 1 Heat Flow Errors 2 | . . . 2 . Energy Discharges 1 | . . 1 . . Data Loss (minor) 4 | . . 1 3 . Misfires 2 | . . . 1 1 Overload Shots . | . . . . . Overflow Damage 5 | . . . . 5 Projectiles . | . . . . . Explosions 5 | . . . . 5 Melee . | . . . . . Knockbacks . | . . . . . Impact . | . . . . . Kinetic . | . . . . . Secondary . | . . . . . Self-Inflicted Damage 133 | . . . . 133 Shots 4 | . . . . 4 Rammed . | . . . . . Targets Rammed . | . . . . . Kicked . | . . . . . Crushed . | . . . . . Highest Temperature 266 | 20 205 31 266 . Average Temperature 65 | 15 98 11 70 . Received Heat Transfer 376 | . 132 141 63 40 Siege Activations . | . . . . . Robots Corrupted 1 | . 1 . . . Combat Hostiles 1 | . 1 . . . Parts Fried 1 | . 1 . . . Impact Corruptions . | . . . . . Robots Melted . | . . . . . Combat Hostiles . | . . . . . Parts Melted . | . . . . . Heat Transferred . | . . . . . Parts Sabotaged . | . . . . . Parts Stolen . | . . . . . Parts Stripped . | . . . . . Power Chain Reactions 1 | . 1 . . . Missiles Intercepted . | . . . . . Alert | -11 -10 -9 -9 -9 ------- Run | Scr Mat Mat Min Exi Peak Influence 242 | 10 187 238 242 . Initial 92 | . 6 78 92 . Average 136 | 6 83 145 180 . Maximum Alert Level 1 | . . 1 1 . Low Security (%) 73 | 100 100 62 59 . Level 1 26 | . . 37 40 . Level 2 . | . . . . . Level 3 . | . . . . . Level 4 . | . . . . . Level 5 . | . . . . . High Security . | . . . . . Max Security . | . . . . . Squads Dispatched 4 | . 3 1 . . Investigation 1 | . 1 . . . Extermination . | . . . . . Reinforcement 3 | . 2 1 . . Assault . | . . . . . Garrison . | . . . . . Intercept . | . . . . . Construction Impeded . | . . . . . Haulers Reinforced . | . . . . . Active Scanning Responses . | . . . . . Cargo Convoy Interrupts . | . . . . . Stealth | -11 -10 -9 -9 -9 --------- Run | Scr Mat Mat Min Exi Distress Signals 3 | . 1 2 . . Communications Jammed . | . . . . . Distress Signals . | . . . . . Times Spotted 35 | . 9 12 6 8 Peak Tracking Total 9 | . 4 4 4 9 Tactical Retreats . | . . . . . Traps | -11 -10 -9 -9 -9 ------- Run | Scr Mat Mat Min Exi Traps Triggered 3 | . . 3 . . Indirectly . | . . . . . Trap Hack Attempts . | . . . . . Triggered . | . . . . . Disarmed . | . . . . . Reprogrammed . | . . . . . Reused . | . . . . . Traps Extracted . | . . . . . Installed . | . . . . . Triggered . | . . . . . Machines | -11 -10 -9 -9 -9 ---------- Run | Scr Mat Mat Min Exi Machines Disabled 3 | . 1 . . 2 Max in Single Turn 2 | . 1 . . 2 Machines Sabotaged . | . . . . . Garrisons Compromised . | . . . . . Overloaded Fab Kills . | . . . . . Hacking | -11 -10 -9 -9 -9 --------- Run | Scr Mat Mat Min Exi Machines Accessed 2 | . 1 1 . . Terminals 2 | . 1 1 . . Fabricators . | . . . . . Repair Stations . | . . . . . Recycling Units . | . . . . . Scanalyzers . | . . . . . Garrison Access . | . . . . . Total Hacks 5 | . 3 2 . . Successful 4 | . 2 2 . . Failed 1 | . 1 . . . Catastrophic . | . . . . . Database Lockouts . | . . . . . Manual 5 | . 3 2 . . Terminals 5 | . 3 2 . . Fabricators . | . . . . . Repair Stations . | . . . . . Recycling Units . | . . . . . Scanalyzers . | . . . . . Garrison Access . | . . . . . Terminal Hacks 2 | . 1 1 . . Robot Analysis 2 | . 1 1 . . Fabricator Hacks . | . . . . . Repair Station Hacks . | . . . . . Recycling Unit Hacks . | . . . . . Scanalyzer . | . . . . . Garrison Access Hacks . | . . . . . Unauthorized Hacks 2 | . 1 1 . . Terminals 2 | . 1 1 . . Botnet 2 | . 1 1 . . Fabricators . | . . . . . Repair Stations . | . . . . . Recycling Units . | . . . . . Scanalyzers . | . . . . . Garrison Access . | . . . . . Data Cores Recovered . | . . . . . Used . | . . . . . Hacking Detections 1 | . 1 . . . Full Trace Events 1 | . 1 . . . Feedback Events . | . . . . . Feedback Blocked . | . . . . . Robot Schematics Acquired . | . . . . . Robots Built . | . . . . . Authchips . | . . . . . Time . | . . . . . Total Robot Build Rating . | . . . . . Part Schematics Acquired . | . . . . . Parts Built . | . . . . . Authchips . | . . . . . Time . | . . . . . Total Part Build Rating . | . . . . . Parts Repaired . | . . . . . Time . | . . . . . Parts Recycled . | . . . . . Recycled Matter . | . . . . . Retrieved Matter . | . . . . . Retrieved Components . | . . . . . Parts Scanalyzed . | . . . . . Part Schematics Acquired . | . . . . . Parts Damaged . | . . . . . Bothacking | -11 -10 -9 -9 -9 ------------ Run | Scr Mat Mat Min Exi Used RIF Installer . | . . . . . Robots Hacked . | . . . . . Non-combat . | . . . . . Combat . | . . . . . Robot Hacks Applied . | . . . . . Relay Couplers Released . | . . . . . Robots Rewired . | . . . . . Allies Hacked . | . . . . . Hacks Repelled . | . . . . . Allies | -11 -10 -9 -9 -9 -------- Run | Scr Mat Mat Min Exi Total Allies . | . . . . . Largest Group . | . . . . . Highest-Rated Group . | . . . . . Highest-Rated Ally . | . . . . . Total Orders . | . . . . . Ally Attacks . | . . . . . Total Damage . | . . . . . Kills . | . . . . . Allies Corrupted . | . . . . . Allies Melted . | . . . . . Intel | -11 -10 -9 -9 -9 ------- Run | Scr Mat Mat Min Exi Robot Analysis Total 2 | . 1 1 . . Derelict Logs Recovered . | . . . . . Drone Launches . | . . . . . Drone Recoveries . | . . . . . Exploration | -11 -10 -9 -9 -9 ------------- Run | Scr Mat Mat Min Exi Turns Passed 1006 | 30 260 248 354 114 Spaces Moved 625 | 11 177 142 233 62 Core 6 | . . . . 6 Treads 26 | . . 14 12 . Legs 2 | 2 . . . . Wheels 591 | 9 177 128 221 56 Hover . | . . . . . Flight . | . . . . . Fastest Speed 90 | 90 90 105 100 120 Average Speed 121 | 97 104 123 122 170 Slowest Speed 600 | 120 105 240 240 600 Overloaded Moves . | . . . . . Propulsion Burnouts . | . . . . . Robots Hopped . | . . . . . Cave-ins Triggered . | . . . . . Exploration Rate (%) 25 | 2 37 23 47 18 Regions Visited 4 Branch Regions 2 Pre-discovered Areas . | . . . . . Known Exits Taken . | . . . . . Unknown Exits Taken 4 | 1 1 1 1 . Scrap Searched 2 | . . . 2 . Spaces Dug . | . . . . . Terrain Destroyed 22 | . 2 . . 20 Melee . | . . . . . Projectile . | . . . . . AOE 22 | . 2 . . 20 Terrain Rammed . | . . . . . Walls Destroyed . | . . . . . Machines Disabled . | . . . . . Actions | -11 -10 -9 -9 -9 --------- Run | Scr Mat Mat Min Exi Total 762 | 21 220 181 270 70 Wait 34 | . 8 15 11 . Move 621 | 10 176 141 232 62 Hop . | . . . . . Pick Up 15 | . 6 4 3 2 Fast Attach 13 | 3 5 2 3 . Attach 7 | . 1 3 1 2 Detach . | . . . . . Swap 4 | . 1 1 2 . Drop 13 | 3 4 . 4 2 Fire 55 | 5 19 15 14 2 Melee . | . . . . . Ram . | . . . . . Kick . | . . . . . Crush . | . . . . . Escape Stasis . | . . . . . Rewire . | . . . . . Trap . | . . . . . Miscellaneous . | . . . . . Route ------- -11/Scrapyard -10/Materials -9/Materials -9/Mines (discovered 2 exits: [*Mat] / [*Exi]) -9/Exiles History --------- Turn | Location | Event 16 | -11/Scrapyard | Discovered new exit (range 3) 31 | -11/Scrapyard | Entered Materials 277 | -10/Materials | Discovered new exit (range 13) 291 | -10/Materials | Entered another Materials area 291 | -9/Materials | Evolved 2 slots: Utility x1, Weapon x1 498 | -9/Materials | Discovered new exit (range 14) 539 | -9/Materials | Entered Mines 598 | -9/Mines | Discovered new exit (range 11) 636 | -9/Mines | Build established: Skirmisher 853 | -9/Mines | Received a Rocket Launcher from a helpful Derelict 885 | -9/Mines | Deemed a non-threat by the Exiles lab entrance 886 | -9/Mines | Discovered new exit (range 5) 893 | -9/Mines | Entered Exiles 930 | -9/Exiles | Met 8R-AWN 949 | -9/Exiles | Attacked by the Exiles 982 | -9/Exiles | Core integrity fell below 50% 997 | -9/Exiles | Core integrity fell below 20% 1007 | -9/Exiles | Destroyed by 8R-AWN with 8R-AWN's Boregun Last Messages --------------- 00974_ Penetrated by HV Slug. 00976_ HV Slug penetrates Machine. 00976_ Machine disabled. 00978_ Arm. Wheel destroyed. 00979_ Penetrated by HV Slug. 00979_ HV Slug penetrates Machine. 00979_ Machine disabled. 00979_ Penetrated by HV Slug. 00980_ Lgt. Treads destroyed. 00981_ HV Slug penetrates Wall. 00981_ Penetrated by HV Slug. 00983_ HV Slug penetrates Machine. 00983_ HV Slug penetrates Wall. 00987_ Penetrated by HV Slug. 00998_ Critical hit (Destroy). 00998_ Rocket Launcher destroyed. 00998_ Penetrated by HV Slug. 01001_ Critical hit (Destroy). 01001_ Imp. Ion Engine destroyed. 01003_ Penetrated by HV Slug. Map ----- +----------------------------------------------------+ | ?????????????????????????????????????????????????? | | ?????????????????????????????????????????????????? | | ?????????????????????????????????????????????????? | | ?????????????????????????????????????????????????? | | ?????????????????????????????????????????????????? | | ?????????????????????????????????????????????????? | | ?????????????????????????????????????????????????? | | ?????????????????????????????????????????????????? | | ?????????????????????????????????????????????????? | | ?????????????????????????????????????????#???????? | | ?????????????????????????????????????????????????? | | ??????????????????????????????#??????????????????? | | ?????????????????????????????????????????????????? | | ?????????????????????????????????????????????????? | | ???????????????""????????????????????????????????? | | ???????????????" " ????????#?????#??????#??#???? | | ????????????? " "???????????#?#####???#????#?? | | ????????????? "a"??????????## ####??????#? | | ???????????? " "#?????????# #???????? | | ???????????? ""###??????# #???????? | | ???????????? """#?????## #???????? | | ??????????? "#??#?## ##??????? | | ??????????? ##???# ######## | | ?????????? ##### #""""## | | ??????????" #;# | | ?????????? @ g * | | ?????????? a% | | ?????????? "## " #### | | ??????????? ; ##### ####??#### | | ??????????? ######??## #???????## | | ???????????? ##????????## ????????? | | ???????????? ##???????????##???????# | | ???????????? " ""#????????????????????#? | | ????????????? ""# "##???#?#?????????#?????? | | ????????????????##" """#???????????????????????? | | ?????????????????########????????????????????????? | | ?????????????????????????????????????????????????? | | ?????????????????????????????????#???????????????? | | ?????????????????????????????????????????????????? | | ?????????????????????????????????????????????????? | | ?????????????????????????????????????????????????? | | ?????????????????????????????????????????????????? | | ?????????????????????????????????????????????????? | | ?????????????????????????????????????????????????? | | ?????????????????????????????????????????????????? | | ?????????????????????????????????????????????????? | | ?????????????????????????????????????????????????? | | ?????????????????????????????????????????????????? | | ?????????????????????????????????????????????????? | | ?????????????????????????????????????????????????? | +----------------------------------------------------+ Best States ------------- Heat Dissipation 28 Energy Generation 12 Energy Capacity 265 Matter Stores 442 Matter Capacity 500 Sight Range 16 Terrain Scan Range 14 Terrain Scan Density 10 Evasion (%) 42 Recoil Reduction 1 Item Schematics ----------------- None Robot Schematics ------------------ None Fabricated ------------ Nothing Alien Tech Used ----------------- None Achievements -------------- None Challenges ------------ None Game ------ Seed SkeletonSwordCore Manual? 0 Play Time 00:16:03 Cumulative 96.0 hours Start 2021.12.22 @ 01:57:08 End 2021.12.22 @ 02:12:42 Sessions 1 Manual Loads 0 Difficulty Rogue Special Mode None Game No. 170 Rogue 165 Adventurer 0 Explorer 5 Win Type - Total 0 Types 0/0/0/0/0/0/0/0/0 Lore% 39 Gallery% 53 Achievement% 42 Wizard Run 0 Options --------- ASCII 0 Keyboard 0 Movement Mouse Keybinds 0 Fullscreen 2 Font 18/Smallcaps Map View 76x50 Tactical HUD 1 Map Filters NONE Filters NONE Steam 1 RUN: c774522f-7a51-4ac3-8b88-4ffcd1e87d7d